[Event "Nordstansblixten 2025"]
[Site "Nordstan, Göteborg, Sweden"]
[Date "2025.05.10"]
[Round "7.10"]
[White "Madevan Vaishnavi, Yaashvan"]
[Black "Alsjo, Sigge"]
[Result "0-1"]
[TimeControl "3 minutes + 2 seconds per move from move one"]
[WhiteFideId "1772180"]
[BlackFideId "1794027"]
[WhiteElo "1717"]
[BlackElo "1539"]

1. e4 {[%clk 00:03:03]} c6 {[%clk 00:03:03]} 2. d4 {[%clk 00:03:04]} {[%emt
00:00:01]} d5 {[%clk 00:03:04]} 3. e5 {[%clk 00:03:05]} c5 4. c3 {[%clk
00:03:05]} {[%emt 00:00:02]} Nc6 {[%clk 00:03:05]} {[%emt 00:00:02]} 5. Nf3
{[%clk 00:03:06]} e6 {[%clk 00:03:05]} {[%emt 00:00:02]} 6. Be3 {[%clk
00:03:06]} {[%emt 00:00:03]} cxd4 {[%clk 00:02:59]} {[%emt 00:00:08]} 7. cxd4
{[%clk 00:03:07]} {[%emt 00:00:02]} Nge7 {[%clk 00:02:58]} {[%emt 00:00:03]} 8.
Nc3 {[%clk 00:02:57]} {[%emt 00:00:12]} Nf5 {[%clk 00:02:52]} {[%emt 00:00:08]}
9. Bd3 {[%clk 00:02:54]} {[%emt 00:00:05]} Nxe3 {[%clk 00:02:51]} {[%emt
00:00:02]} 10. fxe3 {[%clk 00:02:55]} Bb4 {[%clk 00:02:44]} {[%emt 00:00:09]}
11. O-O {[%clk 00:02:56]} {[%emt 00:00:02]} O-O {[%clk 00:02:42]} {[%emt
00:00:04]} 12. Qc2 {[%clk 00:02:43]} {[%emt 00:00:14]} a6 {[%clk 00:02:17]}
{[%emt 00:00:28]} 13. Bxh7+ {[%clk 00:02:43]} {[%emt 00:00:02]} Kh8 {[%clk
00:02:16]} {[%emt 00:00:02]} 14. Bd3 {[%clk 00:02:23]} {[%emt 00:00:23]} b5
{[%clk 00:02:03]} {[%emt 00:00:16]} 15. Nd2 {[%clk 00:02:22]} {[%emt 00:00:03]}
Kg8 {[%clk 00:01:54]} {[%emt 00:00:11]} 16. Bh7+ {[%clk 00:02:18]} {[%emt
00:00:06]} Kh8 {[%clk 00:01:55]} 17. Rf3 {[%clk 00:02:19]} {[%emt 00:00:02]} g6
{[%clk 00:01:38]} {[%emt 00:00:18]} 18. Rh3 {[%clk 00:01:33]} {[%emt 00:00:47]}
Kg7 {[%clk 00:01:39]} {[%emt 00:00:02]} 19. Bxg6 {[%clk 00:00:42]} {[%emt
00:00:53]} fxg6 {[%clk 00:01:34]} {[%emt 00:00:06]} 20. Rg3 {[%clk 00:00:43]}
{[%emt 00:00:01]} Kf7 {[%clk 00:01:23]} {[%emt 00:00:14]} 21. Qxg6+ {[%clk
00:00:42]} {[%emt 00:00:03]} Ke7 {[%clk 00:01:24]} {[%emt 00:00:01]} 22. Nxd5+
{[%clk 00:00:27]} {[%emt 00:00:17]} Qxd5 {[%clk 00:01:18]} {[%emt 00:00:08]} 23.
Ne4 {[%clk 00:00:16]} {[%emt 00:00:13]} a5 {[%clk 00:00:51]} {[%emt 00:00:28]}
24. Rh3 {[%clk 00:00:15]} {[%emt 00:00:04]} Kd8 {[%clk 00:00:43]} {[%emt
00:00:10]} 25. Rh7 {[%clk 00:00:10]} {[%emt 00:00:08]} Ne7 {[%clk 00:00:37]}
{[%emt 00:00:07]} 26. Qg7 {[%clk 00:00:07]} {[%emt 00:00:04]} Re8 {[%clk
00:00:38]} {[%emt 00:00:02]} 27. Nf6 {[%clk 00:00:06]} {[%emt 00:00:03]} a4
{[%clk 00:00:29]} {[%emt 00:00:11]} 28. Nxe8 {[%clk 00:00:07]} Kxe8 {[%clk
00:00:29]} {[%emt 00:00:02]} 29. Rh8+ {[%clk 00:00:07]} {[%emt 00:00:02]} Kd7
{[%clk 00:00:30]} 30. Qf8 {[%clk 00:00:04]} {[%emt 00:00:05]} Bb7 {[%clk
00:00:24]} {[%emt 00:00:08]} 0-1

[Event "Nordstansblixten 2025"]
[Site "Nordstan, Göteborg, Sweden"]
[Date "2025.05.10"]
[Round "8.1"]
[White "Bergdahl, Daniel"]
[Black "Karlsson, Stefan"]
[Result "0-1"]
[TimeControl "3 minutes + 2 seconds per move from move one"]
[WhiteFideId "1780921"]
[BlackFideId "1771183"]
[WhiteElo "1855"]
[BlackElo "2128"]

1. e4 {[%clk 00:03:02]} {[%emt 00:00:01]} c5 {[%clk 00:02:59]} {[%emt
00:00:05]} 2. Nf3 {[%clk 00:03:01]} {[%emt 00:00:02]} d6 {[%clk 00:03:01]} 3.
c3 {[%clk 00:03:02]} Nf6 {[%clk 00:03:02]} 4. Be2 {[%clk 00:03:03]} {[%emt
00:00:02]} g6 {[%clk 00:02:59]} {[%emt 00:00:04]} 5. O-O {[%clk 00:03:02]}
{[%emt 00:00:02]} Bg7 {[%clk 00:03:00]} 6. Bb5+ {[%clk 00:03:03]} {[%emt
00:00:01]} Nc6 {[%clk 00:02:48]} {[%emt 00:00:14]} 7. d4 {[%clk 00:02:54]}
{[%emt 00:00:11]} Qb6 {[%clk 00:02:30]} {[%emt 00:00:21]} 8. Bxc6+ {[%clk
00:02:49]} {[%emt 00:00:07]} Qxc6 {[%clk 00:02:28]} {[%emt 00:00:04]} 9. Re1
{[%clk 00:02:34]} {[%emt 00:00:16]} Bg4 {[%clk 00:02:10]} {[%emt 00:00:20]} 10.
h3 {[%clk 00:02:25]} {[%emt 00:00:11]} Bxf3 {[%clk 00:02:09]} {[%emt 00:00:03]}
11. Qxf3 {[%clk 00:02:26]} O-O {[%clk 00:02:02]} {[%emt 00:00:10]} 12. Nd2
{[%clk 00:02:12]} {[%emt 00:00:15]} cxd4 {[%clk 00:02:01]} {[%emt 00:00:03]} 13.
cxd4 {[%clk 00:02:13]} {[%emt 00:00:01]} Nd7 {[%clk 00:01:33]} {[%emt
00:00:30]} 14. Nb3 {[%clk 00:01:53]} {[%emt 00:00:21]} a5 {[%clk 00:01:29]}
{[%emt 00:00:07]} 15. Be3 {[%clk 00:01:25]} {[%emt 00:00:30]} a4 {[%clk
00:01:31]} 16. Nd2 {[%clk 00:01:23]} {[%emt 00:00:04]} Qc2 {[%clk 00:01:01]}
{[%emt 00:00:31]} 17. Rab1 {[%clk 00:00:58]} {[%emt 00:00:26]} Rfc8 {[%clk
00:00:32]} {[%emt 00:00:32]} 18. Rec1 {[%clk 00:00:36]} {[%emt 00:00:24]} Qd3
{[%clk 00:00:33]} {[%emt 00:00:01]} 19. Rd1 {[%clk 00:00:25]} {[%emt 00:00:13]}
Rc2 {[%clk 00:00:23]} {[%emt 00:00:12]} 20. Nf1 {[%clk 00:00:17]} {[%emt
00:00:10]} Qc4 {[%clk 00:00:20]} {[%emt 00:00:05]} 21. Nd2 {[%clk 00:00:16]}
{[%emt 00:00:04]} Qxa2 {[%clk 00:00:19]} {[%emt 00:00:03]} 22. Ra1 {[%clk
00:00:10]} {[%emt 00:00:08]} Qxb2 {[%clk 00:00:20]} 23. Rdb1 {[%clk 00:00:12]}
Qc3 {[%clk 00:00:17]} {[%emt 00:00:05]} 24. Qg4 {[%clk 00:00:04]} {[%emt
00:00:10]} Nf6 {[%clk 00:00:12]} {[%emt 00:00:07]} 25. Qd1 {[%clk 00:00:04]}
{[%emt 00:00:02]} Rc8 {[%clk 00:00:12]} {[%emt 00:00:03]} 26. Rxa4 {[%clk
00:00:00]} 0-1

[Event "Nordstansblixten 2025"]
[Site "Nordstan, Göteborg, Sweden"]
[Date "2025.05.10"]
[Round "8.2"]
[White "Olivius, Sten"]
[Black "Wellevit, Tomas"]
[Result "0-1"]
[TimeControl "3 minutes + 2 seconds per move from move one"]
[WhiteFideId "1788728"]
[BlackFideId "1731963"]
[WhiteElo "1874"]
[BlackElo "2131"]

1. e4 {[%clk 00:03:03]} c5 {[%clk 00:03:04]} 2. Nc3 {[%clk 00:03:04]} {[%emt
00:00:01]} Nc6 {[%clk 00:03:05]} 3. Nf3 {[%clk 00:03:02]} {[%emt 00:00:03]} e6
{[%clk 00:03:06]} 4. Bc4 {[%clk 00:03:02]} {[%emt 00:00:03]} Nf6 {[%clk
00:03:07]} {[%emt 00:00:01]} 5. d3 {[%clk 00:03:02]} Be7 {[%clk 00:03:08]} 6.
h3 {[%clk 00:03:01]} {[%emt 00:00:03]} Nd4 {[%clk 00:03:07]} {[%emt 00:00:04]}
7. e5 {[%clk 00:02:53]} {[%emt 00:00:09]} Ng8 {[%clk 00:03:02]} {[%emt
00:00:07]} 8. Nxd4 {[%clk 00:02:51]} {[%emt 00:00:05]} cxd4 {[%clk 00:03:04]} 9.
Nb5 {[%clk 00:02:45]} {[%emt 00:00:09]} a6 {[%clk 00:02:55]} {[%emt 00:00:10]}
10. Nd6+ {[%clk 00:02:27]} {[%emt 00:00:19]} Bxd6 {[%clk 00:02:56]} 11. exd6
{[%emt 00:00:03]} Qa5+ {[%clk 00:02:56]} 12. Kf1 {[%clk 00:02:20]} {[%emt
00:00:10]} Qe5 {[%clk 00:02:56]} {[%emt 00:00:02]} 13. Qg4 {[%clk 00:02:14]}
{[%emt 00:00:07]} b5 {[%clk 00:02:40]} {[%emt 00:00:19]} 14. Bf4 {[%clk
00:02:03]} {[%emt 00:00:13]} Qf6 {[%clk 00:02:29]} {[%emt 00:00:12]} 15. Bb3
{[%clk 00:01:57]} {[%emt 00:00:08]} Bb7 {[%clk 00:02:25]} {[%emt 00:00:06]} 16.
Re1 {[%clk 00:01:56]} {[%emt 00:00:03]} Nh6 {[%clk 00:02:23]} {[%emt 00:00:04]}
17. Qg3 {[%clk 00:01:29]} {[%emt 00:00:30]} Nf5 {[%clk 00:02:24]} 18. Qg4
{[%clk 00:01:28]} {[%emt 00:00:03]} h5 {[%clk 00:01:51]} {[%emt 00:00:35]} 19.
Qe2 {[%clk 00:01:22]} {[%emt 00:00:08]} O-O {[%clk 00:01:44]} {[%emt 00:00:08]}
20. Qxh5 {[%emt 00:00:11]} a5 {[%clk 00:01:31]} {[%emt 00:00:13]} 21. Be5
{[%clk 00:00:57]} {[%emt 00:00:21]} Qg6 {[%clk 00:01:32]} {[%emt 00:00:01]} 22.
Qxg6 {[%clk 00:00:52]} {[%emt 00:00:06]} fxg6 {[%clk 00:01:33]} {[%emt
00:00:02]} 23. a3 {[%clk 00:00:35]} {[%emt 00:00:19]} a4 {[%clk 00:01:32]}
{[%emt 00:00:02]} 24. Ba2 {[%clk 00:00:36]} Ne3+ {[%clk 00:01:33]} {[%emt
00:00:02]} 25. Ke2 {[%clk 00:00:29]} {[%emt 00:00:09]} Nxg2 {[%clk 00:01:24]}
{[%emt 00:00:11]} 26. Reg1 {[%clk 00:00:24]} {[%emt 00:00:06]} Nf4+ {[%clk
00:01:24]} {[%emt 00:00:02]} 27. Bxf4 {[%clk 00:00:24]} {[%emt 00:00:02]} Bxh1
{[%clk 00:01:25]} {[%emt 00:00:01]} 28. Rxh1 {[%clk 00:00:15]} {[%emt
00:00:11]} Rxf4 {[%clk 00:01:27]} 29. Rg1 {[%clk 00:00:14]} {[%emt 00:00:03]}
Kh7 {[%clk 00:01:26]} {[%emt 00:00:03]} 30. Rg4 {[%clk 00:00:13]} {[%emt
00:00:02]} Rxg4 {[%clk 00:01:10]} {[%emt 00:00:18]} 31. hxg4 {[%clk 00:00:14]}
g5 {[%clk 00:01:07]} {[%emt 00:00:05]} 32. c4 {[%emt 00:00:08]} dxc3 {[%clk
00:01:06]} 33. bxc3 {[%clk 00:00:12]} {[%emt 00:00:01]} Rc8 {[%clk 00:01:04]}
{[%emt 00:00:04]} 34. c4 {[%clk 00:00:11]} {[%emt 00:00:04]} bxc4 {[%clk
00:01:02]} {[%emt 00:00:05]} 35. dxc4 {[%clk 00:00:12]} Kg6 {[%clk 00:01:03]}
36. Ke3 {[%clk 00:00:10]} {[%emt 00:00:03]} Kf6 {[%clk 00:01:04]} {[%emt
00:00:01]} 37. Kd4 {[%clk 00:00:11]} Rb8 {[%clk 00:01:02]} {[%emt 00:00:04]} 38.
Kc3 {[%clk 00:00:07]} {[%emt 00:00:07]} Ke5 {[%clk 00:00:59]} {[%emt 00:00:04]}
39. c5 {[%clk 00:00:08]} {[%emt 00:00:01]} Ke4 {[%clk 00:00:47]} {[%emt
00:00:14]} 40. Bxe6 {[%clk 00:00:04]} {[%emt 00:00:06]} dxe6 {[%clk 00:00:47]}
{[%emt 00:00:02]} 41. c6 {[%clk 00:00:05]} Rc8 {[%clk 00:00:44]} {[%emt
00:00:04]} 42. c7 {[%clk 00:00:06]} {[%emt 00:00:02]} Kd5 {[%clk 00:00:45]} 43.
Kb4 {[%clk 00:00:05]} {[%emt 00:00:03]} Kxd6 {[%clk 00:00:46]} {[%emt
00:00:01]} 44. Kxa4 {[%clk 00:00:06]} Rxc7 {[%clk 00:00:47]} 0-1

[Event "Nordstansblixten 2025"]
[Site "Nordstan, Göteborg, Sweden"]
[Date "2025.05.10"]
[Round "8.3"]
[White "Ring, Sami"]
[Black "Andersson, Stig"]
[Result "1-0"]
[TimeControl "3 minutes + 2 seconds per move from move one"]
[WhiteFideId "1785869"]
[BlackFideId "1731971"]
[WhiteElo "1712"]
[BlackElo "1837"]

1. e4 {[%clk 00:03:03]} {[%emt 00:00:01]} e5 {[%clk 00:03:02]} {[%emt
00:00:02]} 2. Nf3 {[%clk 00:03:04]} {[%emt 00:00:01]} Nc6 {[%clk 00:03:03]}
{[%emt 00:00:01]} 3. Bc4 {[%clk 00:03:05]} d6 {[%clk 00:03:03]} {[%emt
00:00:02]} 4. O-O {[%clk 00:03:05]} {[%emt 00:00:03]} Be7 {[%clk 00:03:02]}
{[%emt 00:00:02]} 5. h3 {[%clk 00:03:06]} {[%emt 00:00:01]} Nf6 {[%clk
00:03:02]} {[%emt 00:00:02]} 6. d3 {[%clk 00:03:07]} O-O {[%clk 00:03:02]}
{[%emt 00:00:02]} 7. c3 {[%clk 00:03:08]} {[%emt 00:00:01]} h6 {[%clk
00:03:01]} {[%emt 00:00:02]} 8. Nbd2 {[%clk 00:03:09]} {[%emt 00:00:02]} Be6
{[%clk 00:02:59]} {[%emt 00:00:03]} 9. Bxe6 {[%clk 00:03:09]} {[%emt 00:00:01]}
fxe6 {[%clk 00:03:00]} {[%emt 00:00:02]} 10. Qb3 {[%clk 00:03:10]} Qc8 {[%clk
00:02:57]} {[%emt 00:00:04]} 11. Re1 {[%clk 00:03:12]} Kh7 {[%clk 00:02:56]}
{[%emt 00:00:03]} 12. Nf1 {[%clk 00:03:12]} {[%emt 00:00:02]} Nh5 {[%clk
00:02:49]} {[%emt 00:00:08]} 13. N1h2 {[%clk 00:02:49]} {[%emt 00:00:25]} Nd8
{[%clk 00:02:31]} {[%emt 00:00:20]} 14. d4 {[%clk 00:02:50]} {[%emt 00:00:02]}
exd4 {[%clk 00:02:30]} {[%emt 00:00:02]} 15. cxd4 {[%clk 00:02:50]} {[%emt
00:00:02]} Bf6 {[%clk 00:02:10]} {[%emt 00:00:23]} 16. e5 {[%clk 00:02:45]}
{[%emt 00:00:07]} Be7 {[%clk 00:02:04]} {[%emt 00:00:08]} 17. Bd2 {[%clk
00:02:31]} {[%emt 00:00:16]} d5 {[%clk 00:02:03]} {[%emt 00:00:03]} 18. Rac1
{[%clk 00:02:31]} {[%emt 00:00:02]} c6 {[%clk 00:02:03]} {[%emt 00:00:02]} 19.
Qc2+ {[%clk 00:02:30]} {[%emt 00:00:02]} Kh8 {[%clk 00:01:51]} {[%emt
00:00:14]} 20. Re3 {[%clk 00:02:12]} {[%emt 00:00:22]} Nf4 {[%clk 00:01:50]}
{[%emt 00:00:03]} 21. Kf1 {[%clk 00:02:00]} {[%emt 00:00:13]} Rf5 {[%clk
00:01:45]} {[%emt 00:00:09]} 22. Rc3 {[%clk 00:01:58]} {[%emt 00:00:03]} Qd7
{[%clk 00:01:32]} {[%emt 00:00:15]} 23. Bxf4 {[%clk 00:01:53]} {[%emt
00:00:07]} Rxf4 {[%clk 00:01:33]} {[%emt 00:00:01]} 24. Qd2 {[%clk 00:01:49]}
{[%emt 00:00:06]} Rf5 {[%clk 00:01:27]} {[%emt 00:00:08]} 25. Ng4 {[%clk
00:01:45]} {[%emt 00:00:05]} Bg5 {[%clk 00:01:16]} {[%emt 00:00:13]} 26. Nxg5
{[%clk 00:01:37]} {[%emt 00:00:11]} Rxg5 {[%clk 00:01:17]} {[%emt 00:00:01]} 27.
Rf3 {[%clk 00:01:29]} {[%emt 00:00:08]} Nf7 {[%clk 00:01:07]} {[%emt 00:00:13]}
28. b4 {[%clk 00:01:15]} {[%emt 00:00:16]} Kg8 {[%clk 00:01:02]} {[%emt
00:00:07]} 29. Qe3 {[%clk 00:01:08]} {[%emt 00:00:09]} Rf8 {[%clk 00:01:02]}
{[%emt 00:00:02]} 30. Rc3 {[%clk 00:01:04]} {[%emt 00:00:06]} a6 {[%clk
00:01:03]} {[%emt 00:00:01]} 31. a3 {[%clk 00:01:05]} {[%emt 00:00:02]} Qe7
{[%clk 00:00:48]} {[%emt 00:00:16]} 32. Nh2 {[%clk 00:01:04]} {[%emt 00:00:03]}
Rg6 {[%clk 00:00:43]} {[%emt 00:00:06]} 33. Rg3 {[%clk 00:01:01]} {[%emt
00:00:05]} Ng5 {[%clk 00:00:42]} {[%emt 00:00:04]} 34. h4 {[%clk 00:00:46]}
{[%emt 00:00:17]} Ne4 {[%clk 00:00:41]} {[%emt 00:00:03]} 35. Rxg6 {[%clk
00:00:42]} {[%emt 00:00:05]} Qf7 {[%clk 00:00:38]} {[%emt 00:00:06]} 36. Rg3
{[%clk 00:00:25]} {[%emt 00:00:15]} Nxc3 {[%clk 00:00:36]} {[%emt 00:00:08]} 37.
Rf3 {[%clk 00:00:26]} Qg6 {[%emt 00:00:19]} 38. Qxc3 {[%clk 00:00:21]} {[%emt
00:00:03]} Qb1+ {[%clk 00:00:20]} {[%emt 00:00:05]} 39. Qe1 {[%clk 00:00:21]}
{[%emt 00:00:01]} Rxf3 {[%clk 00:00:20]} {[%emt 00:00:02]} 40. Nxf3 {[%clk
00:00:21]} {[%emt 00:00:03]} Qa2 {[%clk 00:00:18]} {[%emt 00:00:05]} 41. Qe3
{[%clk 00:00:20]} {[%emt 00:00:02]} Qc4+ {[%clk 00:00:18]} {[%emt 00:00:03]} 42.
Kg1 {[%clk 00:00:20]} a5 {[%clk 00:00:15]} {[%emt 00:00:05]} 43. Nd2 {[%clk
00:00:21]} Qc1+ {[%clk 00:00:15]} {[%emt 00:00:02]} 44. Nf1 {[%clk 00:00:20]}
{[%emt 00:00:03]} Qd1 {[%clk 00:00:15]} {[%emt 00:00:03]} 45. Qd2 {[%clk
00:00:18]} {[%emt 00:00:02]} Qg4 {[%clk 00:00:14]} {[%emt 00:00:04]} 46. g3
{[%clk 00:00:15]} {[%emt 00:00:05]} axb4 {[%clk 00:00:15]} {[%emt 00:00:02]} 47.
axb4 {[%clk 00:00:16]} Qg6 {[%clk 00:00:13]} {[%emt 00:00:04]} 48. Ne3 {[%clk
00:00:16]} {[%emt 00:00:02]} Qe4 {[%clk 00:00:13]} {[%emt 00:00:01]} 49. Qc2
{[%clk 00:00:16]} {[%emt 00:00:03]} Qxd4 {[%clk 00:00:11]} {[%emt 00:00:03]} 50.
Qc5 {[%clk 00:00:17]} {[%emt 00:00:02]} Qa1+ {[%clk 00:00:11]} {[%emt
00:00:03]} 51. Kg2 {[%clk 00:00:17]} {[%emt 00:00:01]} Qa6 {[%clk 00:00:10]}
{[%emt 00:00:03]} 52. Qe7 {[%clk 00:00:17]} {[%emt 00:00:02]} Qd3 {[%clk
00:00:08]} {[%emt 00:00:04]} 53. Qxe6+ {[%clk 00:00:18]} {[%emt 00:00:02]} Kh8
{[%clk 00:00:07]} {[%emt 00:00:02]} 54. Qe8+ {[%clk 00:00:17]} {[%emt
00:00:02]} Kh7 {[%clk 00:00:09]} {[%emt 00:00:02]} 55. e6 {[%clk 00:00:18]}
Qe4+ {[%clk 00:00:09]} 56. Kh2 {[%clk 00:00:15]} {[%emt 00:00:04]} d4 {[%clk
00:00:10]} {[%emt 00:00:02]} 57. Ng2 {[%emt 00:00:06]} Qf3 {[%clk 00:00:10]} 58.
Qf7 {[%clk 00:00:13]} {[%emt 00:00:02]} Qd5 {[%clk 00:00:03]} {[%emt 00:00:09]}
59. Nf4 {[%clk 00:00:13]} {[%emt 00:00:02]} 1-0

[Event "Nordstansblixten 2025"]
[Site "Nordstan, Göteborg, Sweden"]
[Date "2025.05.10"]
[Round "8.5"]
[White "Kenani, Dariush"]
[Black "Cigoja, Vuk"]
[Result "1-0"]
[TimeControl "3 minutes + 2 seconds per move from move one"]
[WhiteFideId "1707973"]
[BlackFideId "14411628"]
[WhiteElo "1933"]
[BlackElo "1719"]

1. d4 {[%clk 00:03:02]} {[%emt 00:00:02]} Nf6 {[%clk 00:03:00]} {[%emt
00:00:03]} 2. Nf3 {[%clk 00:03:01]} {[%emt 00:00:03]} e6 {[%clk 00:03:01]}
{[%emt 00:00:02]} 3. c4 {[%clk 00:03:01]} {[%emt 00:00:02]} c6 {[%clk
00:03:02]} 4. Nc3 {[%clk 00:03:01]} {[%emt 00:00:01]} Bb4 {[%clk 00:02:59]}
{[%emt 00:00:06]} 5. e3 {[%clk 00:03:00]} {[%emt 00:00:03]} O-O {[%clk
00:02:53]} {[%emt 00:00:08]} 6. Bd3 {[%clk 00:03:00]} {[%emt 00:00:01]} d5
{[%clk 00:02:47]} {[%emt 00:00:08]} 7. O-O {[%clk 00:02:59]} {[%emt 00:00:03]}
Bxc3 {[%clk 00:02:44]} {[%emt 00:00:04]} 8. bxc3 {[%clk 00:03:00]} {[%emt
00:00:01]} Ne4 {[%clk 00:02:44]} {[%emt 00:00:03]} 9. Qc2 {[%clk 00:02:59]}
{[%emt 00:00:03]} f5 {[%clk 00:02:38]} {[%emt 00:00:08]} 10. Ne5 {[%clk
00:02:56]} {[%emt 00:00:04]} Nd7 {[%clk 00:02:35]} {[%emt 00:00:06]} 11. f3
{[%clk 00:02:34]} {[%emt 00:00:24]} Nxe5 {[%clk 00:02:26]} {[%emt 00:00:11]} 12.
dxe5 {[%clk 00:02:34]} {[%emt 00:00:02]} Nc5 {[%clk 00:01:56]} {[%emt
00:00:33]} 13. a4 {[%clk 00:02:20]} {[%emt 00:00:15]} Qa5 {[%clk 00:01:33]}
{[%emt 00:00:26]} 14. Ba3 {[%clk 00:01:57]} {[%emt 00:00:24]} Rd8 {[%clk
00:01:26]} {[%emt 00:00:09]} 15. Bb4 {[%clk 00:01:55]} {[%emt 00:00:05]} Qc7
{[%clk 00:01:12]} {[%emt 00:00:16]} 16. Bxc5 {[%clk 00:01:54]} {[%emt
00:00:03]} Qxe5 {[%clk 00:01:12]} {[%emt 00:00:01]} 17. Bd4 {[%clk 00:01:50]}
{[%emt 00:00:05]} Qd6 {[%clk 00:01:10]} {[%emt 00:00:04]} 18. c5 {[%clk
00:01:45]} {[%emt 00:00:07]} Qc7 {[%clk 00:01:07]} {[%emt 00:00:06]} 19. f4
{[%clk 00:01:45]} {[%emt 00:00:02]} Qe7 {[%clk 00:01:05]} {[%emt 00:00:05]} 20.
a5 {[%clk 00:01:44]} {[%emt 00:00:02]} Bd7 {[%clk 00:01:03]} {[%emt 00:00:03]}
21. Rab1 {[%clk 00:01:40]} {[%emt 00:00:06]} Be8 {[%clk 00:01:00]} {[%emt
00:00:05]} 22. Rb2 {[%clk 00:01:31]} {[%emt 00:00:11]} g5 {[%clk 00:00:55]}
{[%emt 00:00:07]} 23. Rfb1 {[%clk 00:01:25]} {[%emt 00:00:08]} Rd7 {[%clk
00:00:56]} {[%emt 00:00:02]} 24. Qf2 {[%clk 00:01:18]} {[%emt 00:00:08]} gxf4
{[%clk 00:00:45]} {[%emt 00:00:14]} 25. Qxf4 {[%clk 00:01:18]} {[%emt
00:00:02]} Bg6 {[%clk 00:00:34]} {[%emt 00:00:13]} 26. Qe5 {[%clk 00:01:16]}
{[%emt 00:00:03]} Rad8 {[%clk 00:00:14]} {[%emt 00:00:22]} 27. Rf1 {[%clk
00:00:53]} {[%emt 00:00:25]} Rf8 {[%clk 00:00:03]} {[%emt 00:00:14]} 28. Rbf2
{[%clk 00:00:36]} {[%emt 00:00:19]} Kf7 {[%clk 00:00:03]} {[%emt 00:00:03]} 29.
h3 {[%clk 00:00:33]} {[%emt 00:00:05]} Ke8 {[%clk 00:00:04]} 30. Rb1 {[%clk
00:00:27]} {[%emt 00:00:07]} 1-0

[Event "Nordstansblixten 2025"]
[Site "Nordstan, Göteborg, Sweden"]
[Date "2025.05.10"]
[Round "8.6"]
[White "Hammar, Arvid"]
[Black "Buzleta, Patrik"]
[Result "1-0"]
[TimeControl "3 minutes + 2 seconds per move from move one"]
[WhiteFideId "1735977"]
[BlackFideId "1755463"]
[WhiteElo "1667"]
[BlackElo "1950"]

1. c4 {[%clk 00:03:03]} {[%emt 00:00:01]} e6 {[%clk 00:03:04]} 2. d4 {[%clk
00:03:04]} {[%emt 00:00:02]} a6 {[%clk 00:03:05]} {[%emt 00:00:01]} 3. Nc3
{[%clk 00:03:04]} g6 {[%clk 00:03:06]} 4. g3 {[%clk 00:03:05]} Bg7 {[%clk
00:03:07]} {[%emt 00:00:01]} 5. Bg2 {[%clk 00:03:05]} {[%emt 00:00:02]} d6
{[%clk 00:03:08]} {[%emt 00:00:01]} 6. Nf3 {[%clk 00:03:05]} {[%emt 00:00:02]}
h6 {[%clk 00:03:09]} 7. O-O {[%clk 00:03:05]} {[%emt 00:00:02]} Nf6 {[%clk
00:03:04]} {[%emt 00:00:08]} 8. e4 {[%clk 00:03:00]} {[%emt 00:00:07]} Nbd7
{[%clk 00:03:03]} {[%emt 00:00:02]} 9. Re1 {[%clk 00:02:56]} {[%emt 00:00:06]}
Rb8 {[%clk 00:03:03]} {[%emt 00:00:02]} 10. e5 {[%clk 00:02:50]} {[%emt
00:00:08]} dxe5 {[%clk 00:03:04]} {[%emt 00:00:01]} 11. dxe5 {[%clk 00:02:46]}
{[%emt 00:00:06]} Nh7 {[%clk 00:03:04]} {[%emt 00:00:02]} 12. Bf4 {[%clk
00:02:34]} {[%emt 00:00:14]} O-O {[%clk 00:02:59]} {[%emt 00:00:08]} 13. Qd2
{[%clk 00:02:25]} {[%emt 00:00:12]} g5 {[%clk 00:02:52]} {[%emt 00:00:08]} 14.
Be3 {[%clk 00:02:14]} {[%emt 00:00:12]} b6 {[%clk 00:02:46]} {[%emt 00:00:09]}
15. b3 {[%clk 00:02:05]} {[%emt 00:00:11]} c5 {[%clk 00:02:30]} {[%emt
00:00:18]} 16. Rad1 {[%clk 00:02:01]} {[%emt 00:00:06]} Qc7 {[%clk 00:02:26]}
{[%emt 00:00:06]} 17. Ne4 {[%clk 00:01:39]} {[%emt 00:00:24]} Rd8 {[%clk
00:02:17]} {[%emt 00:00:11]} 18. Qc2 {[%clk 00:01:31]} {[%emt 00:00:11]} g4
{[%clk 00:01:58]} {[%emt 00:00:20]} 19. Nh4 {[%clk 00:01:27]} {[%emt 00:00:06]}
Nxe5 {[%clk 00:01:55]} {[%emt 00:00:05]} 20. Nd6 {[%clk 00:01:21]} {[%emt
00:00:08]} Rxd6 {[%clk 00:01:53]} {[%emt 00:00:05]} 21. Rxd6 {[%clk 00:01:18]}
{[%emt 00:00:05]} Qxd6 {[%clk 00:01:53]} 22. Bf4 {[%clk 00:01:16]} {[%emt
00:00:04]} Bb7 {[%clk 00:01:09]} {[%emt 00:00:47]} 23. Bxb7 {[%clk 00:01:08]}
{[%emt 00:00:09]} Rxb7 {[%clk 00:01:10]} 24. Qe2 {[%clk 00:01:01]} {[%emt
00:00:08]} Nf3+ {[%clk 00:00:42]} {[%emt 00:00:30]} 25. Nxf3 {[%clk 00:01:00]}
{[%emt 00:00:02]} gxf3 {[%clk 00:00:43]} {[%emt 00:00:02]} 26. Qxf3 {[%clk
00:00:57]} {[%emt 00:00:05]} Qd7 {[%clk 00:00:31]} {[%emt 00:00:14]} 27. Qg4
{[%clk 00:00:54]} {[%emt 00:00:04]} Nf6 {[%clk 00:00:18]} {[%emt 00:00:16]} 28.
Qf3 {[%clk 00:00:51]} {[%emt 00:00:05]} b5 {[%clk 00:00:14]} {[%emt 00:00:06]}
29. Rd1 {[%clk 00:00:51]} {[%emt 00:00:03]} Qc8 {[%clk 00:00:10]} {[%emt
00:00:06]} 30. Be5 {[%clk 00:00:44]} {[%emt 00:00:08]} Nd7 {[%clk 00:00:10]}
{[%emt 00:00:02]} 31. Bxg7 {[%clk 00:00:39]} {[%emt 00:00:07]} Kxg7 {[%clk
00:00:12]} 32. Qg4+ {[%clk 00:00:31]} {[%emt 00:00:09]} Kh7 {[%clk 00:00:09]}
{[%emt 00:00:05]} 33. Qe4+ {[%clk 00:00:31]} {[%emt 00:00:02]} Kg8 {[%clk
00:00:08]} {[%emt 00:00:02]} 34. Qg4+ {[%clk 00:00:30]} {[%emt 00:00:03]} Kh8
{[%clk 00:00:07]} {[%emt 00:00:03]} 35. Qf4 {[%clk 00:00:22]} {[%emt 00:00:10]}
Kh7 {[%clk 00:00:06]} {[%emt 00:00:03]} 36. Qxf7+ {[%clk 00:00:18]} {[%emt
00:00:06]} Kh8 {[%clk 00:00:07]} 37. Qxe6 {[%clk 00:00:10]} {[%emt 00:00:10]}
bxc4 {[%clk 00:00:07]} {[%emt 00:00:02]} 38. Qxc4 {[%clk 00:00:06]} {[%emt
00:00:06]} Ne5 {[%clk 00:00:05]} {[%emt 00:00:05]} 39. Qc3 {[%clk 00:00:07]}
Qe8 {[%clk 00:00:06]} 40. Re1 {[%clk 00:00:08]} {[%emt 00:00:01]} Re7 {[%clk
00:00:07]} 41. f4 {[%clk 00:00:06]} {[%emt 00:00:35]} Kh7 {[%clk 00:00:09]}
{[%emt 00:00:26]} 42. fxe5 {[%clk 00:00:07]} Qc6 {[%clk 00:00:08]} {[%emt
00:00:03]} 43. Kg2 {[%clk 00:00:06]} {[%emt 00:00:36]} Qd5+ {[%emt 00:00:07]}
44. Kg1 {[%clk 00:00:07]} 1-0